bitfinex-derivatives/quotes_ETHF0:USTF0_20250824
["timestamp","ask_amount","ask_price","bid_price","bid_amount"]
[1756034005428,0.2186,4740.6,4739.8,0.17637215]
[1756034005628,0.2186,4740.6,4739.9,0.17637215]
[1756034005826,0.2186,4740.6,4740.0,0.17637215]
[1756034006028,0.2186,4740.6,4739.6,0.021]
[1756034006224,0.2186,4740.6,4739.7,0.17649096]
[1756034006425,0.2186,4740.6,4739.8,0.17649096]
[1756034006625,0.2186,4740.8,4739.9,0.19749096]
[1756034006924,0.2186,4740.8,4739.4,10.0]
[1756034006925,0.2186,4740.8,4740.1,0.021]
[1756034007125,0.2186,4740.8,4740.2,19.70049096]
[1756034007328,0.2186,4740.8,4740.3,0.17649096]
[1756034007523,0.2186,4740.8,4740.4,0.17677545]
[1756034007726,0.3422,4741.2,4740.5,0.17677545]
[1756034007922,0.3422,4741.1,4740.2,19.524]
[1756034008130,0.9801,4741.0,4740.3,0.17677571]
[1756034008323,1.3223,4740.5,4740.4,0.17677571]
[1756034008530,1.3223,4740.5,4739.7,19.518]
[1756034008723,0.3747,4739.9,4739.8,0.17682759]
[1756034009124,0.2186,4739.9,4739.8,0.17682759]
[1756034009327,0.2186,4740.6,4739.8,4.17682759]
[1756034009631,0.3747,4740.6,4739.9,0.17682759]
[1756034009928,0.524,4740.6,4740.0,0.17682759]
[1756034010127,1.3223,4740.5,4740.1,0.17682759]
[1756034010332,0.2186,4740.3,4740.2,0.17682759]
[1756034010728,1.3223,4740.3,4740.2,0.17682759]
[1756034011030,0.2186,4740.3,4740.2,0.17682759]
[1756034011325,1.3223,4740.3,4740.2,0.17682759]
[1756034011722,0.5304,4740.3,4740.2,0.17697451]
[1756034012325,1.3223,4740.3,4740.2,0.17697451]
[1756034013626,0.749,4739.5,4739.4,10.0]
[1756034013828,1.3223,4739.5,4739.4,9.7576]
[1756034014031,1.3223,4739.5,4739.4,9.1516]
[1756034018631,1.3223,4739.5,4739.4,10.2945]
[1756034018832,1.3223,4739.5,4739.4,10.054]
[1756034019031,1.3223,4739.5,4739.4,9.3076]
[1756034019232,1.3223,4739.5,4739.4,9.5467]
[1756034019432,1.3223,4739.5,4739.4,10.054]
[1756034020833,1.3223,4739.5,4739.4,9.1516]
[1756034024241,5.3223,4739.5,4739.4,9.1516]
[1756034024442,1.3223,4739.5,4739.4,10.2945]
[1756034024736,0.9801,4739.5,4739.4,10.5276]
[1756034024932,0.3332,4739.8,4739.4,9.6965]
[1756034025138,0.5419,4739.7,4739.6,0.5449]
[1756034025331,0.997,4739.7,4739.6,1.376]
[1756034025538,0.2294,4739.7,4739.6,1.376]
[1756034025737,0.7615,4739.7,4739.6,1.376]
[1756034025938,0.548,4739.5,4739.4,9.1516]
[1756034026138,1.3302,4739.5,4739.4,9.1516]
[1756034026345,1.3302,4739.5,4739.4,9.5467]
[1756034026639,1.3302,4739.5,4739.4,10.5276]
[1756034026940,1.3302,4739.5,4739.4,9.1516]
[1756034027944,1.3302,4739.5,4739.4,9.5467]
[1756034028246,1.3302,4739.5,4739.4,9.1516]
[1756034029040,1.3302,4739.5,4739.4,10.2945]
[1756034029844,1.3302,4739.5,4739.4,9.1516]
[1756034031847,1.3302,4739.5,4739.4,9.3907]
[1756034032244,1.3302,4739.5,4739.4,10.2945]
[1756034032544,1.3302,4739.5,4739.4,9.5467]
[1756034032750,1.3302,4739.5,4739.4,9.1516]
[1756034033049,1.3302,4739.5,4739.4,9.9042]
[1756034033249,1.3302,4739.5,4739.4,10.2945]
[1756034033448,0.2294,4739.5,4739.4,10.5276]
[1756034033639,1.3302,4740.6,4740.5,0.1498]
[1756034033842,1.50389448,4740.6,4740.5,1.1429]
[1756034035049,1.50389448,4740.6,4740.5,0.9024]
[1756034035246,0.7822,4740.5,4740.2,0.598]
[1756034035453,1.3302,4740.3,4740.2,0.7526]
[1756034035651,1.3302,4740.3,4739.4,9.1516]
[1756034035652,1.50389448,4740.3,4739.4,9.1516]
[1756034035855,1.3302,4739.5,4739.4,10.054]
[1756034036056,1.3302,4739.5,4739.4,10.2945]
[1756034036450,1.3302,4739.5,4739.4,9.6965]
[1756034036755,1.3302,4739.5,4739.4,10.054]
[1756034036955,1.3302,4739.5,4739.4,10.2945]
[1756034037750,0.2294,4740.1,4740.0,1.376]
[1756034037954,0.17376341,4740.1,4740.0,1.376]
[1756034038154,0.2294,4740.6,4740.5,0.9024]
[1756034038155,1.3302,4740.6,4740.5,0.9024]
[1756034038356,1.50396527,4740.6,4740.5,0.9024]
[1756034039750,0.72176527,4740.6,4739.4,9.5091]
[1756034039958,0.72176527,4740.6,4739.5,1.1429]
[1756034039959,1.3302,4739.6,4739.5,1.1429]
[1756034040356,1.3302,4739.6,4739.5,0.3951]
[1756034040560,1.3302,4739.6,4739.5,1.1429]
[1756034040857,1.3302,4739.5,4739.4,9.1516]
[1756034041054,1.50371097,4739.5,4739.4,9.1516]
[1756034041850,1.3302,4739.5,4739.4,9.1516]
[1756034042659,1.3302,4739.5,4739.4,10.054]
[1756034042866,1.3302,4739.5,4739.4,10.2945]
[1756034043558,0.2294,4739.8,4739.7,0.3889]
[1756034043765,0.2294,4739.8,4739.7,1.376]
[1756034044160,0.8422,4739.8,4739.7,1.376]
[1756034044559,1.3302,4739.8,4739.7,1.1429]
[1756034048963,1.82829663,4739.8,4739.4,9.1516]
[1756034049264,1.3176,4739.5,4739.4,9.3918]
[1756034049471,1.3176,4739.5,4739.4,9.8782]
[1756034049765,1.3176,4739.5,4739.4,10.0296]
[1756034049966,1.3176,4739.5,4739.4,10.2611]
[1756034056969,1.3176,4739.5,4739.4,10.4959]
[1756034059673,1.3176,4739.5,4739.4,10.2611]
[1756034059866,1.3386,4739.5,4739.4,10.2611]
[1756034060166,1.3176,4739.5,4739.4,10.0296]
[1756034060765,1.3176,4739.5,4739.4,9.6935]
[1756034060966,1.3176,4739.5,4739.4,9.3918]
[1756034061473,5.83670622,4739.5,4738.4,0.3361]
[1756034061679,0.5406,4738.5,4738.4,0.7266]
[1756034061975,1.1746,4738.5,4738.4,1.3443]
[1756034062877,0.3813,4738.1,4738.0,0.9581]
[1756034063072,1.1746,4738.1,4738.0,1.3443]
[1756034066872,1.1746,4738.1,4738.0,0.878]
[1756034067274,1.1746,4738.1,4738.0,1.3443]
[1756034070478,20.6446,4738.1,4738.0,1.3443]
[1756034076985,0.1486,4737.3,4736.9,0.3385]
[1756034077177,0.5233,4736.8,4736.7,0.6173]
[1756034077484,20.6456,4736.8,4736.7,1.3408]
[1756034078075,20.2381,4736.8,4736.7,1.3408]
[1756034079677,0.7671,4736.8,4736.7,1.3408]
[1756034080083,0.4645,4737.2,4736.4,0.0211]
[1756034080278,20.2401,4737.4,4737.3,0.5291]
[1756034080478,20.4269,4737.4,4737.3,1.3408]
[1756034080678,20.6476,4737.4,4737.3,1.3408]
[1756034082087,19.7746,4737.4,4737.3,1.3408]
[1756034082491,0.3026,4737.4,4737.3,1.3408]
[1756034082883,0.6513,4737.7,4737.3,1.3408]
[1756034082884,0.4645,4737.7,4737.3,1.3408]
[1756034083088,19.472,4737.5,4737.4,0.8117]
[1756034083290,20.6466,4737.5,4737.4,1.3408]
[1756034083489,20.6466,4737.5,4737.0,0.2372]
[1756034083685,20.6466,4737.5,4736.3,0.0211]
[1756034083686,0.5233,4737.2,4737.1,1.1036]
[1756034083891,1.1746,4737.2,4737.1,1.3408]
[1756034084095,20.6476,4737.2,4737.1,1.3408]
[1756034084290,20.4608,4737.2,4737.1,1.3408]
[1756034084491,20.6476,4737.2,4737.1,1.3408]
[1756034085590,20.6476,4737.2,4737.1,1.63618728]
[1756034085790,20.6476,4737.2,4737.1,1.63618698]
[1756034087296,20.6476,4737.2,4737.1,1.16298698]
[1756034087497,20.6476,4737.2,4737.1,0.67548698]
[1756034088199,20.6476,4737.2,4737.1,0.29538698]
[1756034089102,20.6476,4737.2,4737.1,0.51698698]
[1756034089292,20.6476,4737.2,4737.1,0.85766826]
[1756034089493,20.6476,4737.2,4737.1,0.29756826]
[1756034089901,20.6476,4737.2,4737.1,1.63836826]
[1756034091299,20.6476,4737.2,4737.1,0.29756826]
[1756034092096,20.6466,4737.2,4737.1,0.29756826]
[1756034092596,20.6466,4737.2,4737.1,1.16516826]
[1756034092796,1.1746,4737.2,4737.1,1.63836826]
[1756034093703,20.6466,4737.2,4737.1,1.63836826]
[1756034095704,20.6466,4737.2,4737.1,1.3408]
[1756034095900,20.6466,4737.2,4737.1,1.64720613]
[1756034096699,20.6466,4737.2,4737.1,1.17400613]
[1756034097096,20.6466,4737.2,4737.1,1.02500613]
[1756034097305,20.6466,4737.2,4737.1,0.52800613]
[1756034098006,20.6466,4737.2,4737.1,0.30640613]
[1756034098996,20.6466,4737.2,4737.1,1.64720613]
[1756034099801,20.6466,4737.2,4737.1,1.17400613]
[1756034100408,20.6456,4737.2,4737.1,1.64720613]
[1756034101108,20.6456,4737.2,4737.1,1.17400613]
[1756034101302,20.6456,4737.2,4737.1,0.30640613]
[1756034101607,20.6456,4737.2,4737.1,1.64720613]
[1756034102818,20.6456,4737.2,4737.1,1.17400613]
[1756034103107,20.6456,4737.2,4737.1,1.64720613]
[1756034104110,20.6456,4737.2,4737.1,1.17400613]
[1756034104503,20.6456,4737.2,4737.1,0.8676]
[1756034104704,20.6456,4737.2,4737.1,1.17887454]
[1756034106106,20.6456,4737.2,4737.1,2.78839963]
[1756034107105,20.6436,4737.2,4737.1,2.78839963]
[1756034107701,0.1858,4737.6,4737.2,0.5846]
[1756034108010,0.1858,4738.0,4737.7,0.5259]
[1756034108314,0.1504,4737.9,4737.8,1.84086869]
[1756034108507,0.3015,4737.9,4737.8,1.84086869]
[1756034108698,1.1887,4737.9,4737.8,1.84086869]
[1756034109303,1.1887,4737.9,4737.8,1.64277454]
[1756034110310,20.6577,4737.9,4737.8,1.64277454]
[1756034111211,20.6577,4737.9,4737.8,1.64544457]
[1756034111707,0.17011473,4739.3,4737.8,1.64544457]
[1756034111708,0.7626,4738.5,4738.4,0.2226]
[1756034111909,30.417,4740.9,4738.6,0.346]
[1756034112117,1.0029,4739.6,4739.5,1.3315]
[1756034112416,19.468,4739.8,4739.5,3.05181744]
[1756034112612,19.7695,4739.8,4739.7,1.3315]
[1756034112812,20.6567,4739.8,4739.7,1.91337119]
[1756034113408,20.6567,4739.8,4739.7,1.64544457]
[1756034113604,0.9484,4739.8,4739.7,1.64544457]
[1756034113807,20.4154,4739.8,4739.7,1.64544457]
[1756034114007,20.4154,4739.8,4739.7,1.91306447]
[1756034114514,0.3015,4739.8,4739.7,1.95770214]
[1756034114709,0.3015,4739.8,4739.7,2.22508151]
[1756034115013,0.3015,4739.8,4739.7,3.36352776]
[1756034115210,0.3015,4739.8,4739.7,1.95770214]
[1756034116409,0.4611,4740.1,4739.7,1.15210214]
[1756034116609,0.223,4740.4,4740.0,0.5259]
[1756034116805,0.4239,4740.6,4739.7,0.31310107]
[1756034116806,0.7254,4740.6,4740.5,0.3033]
[1756034117014,20.4114,4740.6,4740.5,1.64460107]
[1756034117215,20.6517,4740.6,4740.5,1.64460107]
[1756034118213,1.1887,4740.6,4740.5,0.31310107]
[1756034118412,0.5418,4739.8,4739.7,0.68820107]
[1756034118718,0.5418,4739.8,4739.7,0.6250335]
[1756034118719,1.1887,4739.8,4739.7,0.6250335]
[1756034120412,1.1887,4739.8,4739.7,0.31310107]
[1756034120715,4.5628,4739.8,4738.6,0.2386]
[1756034120919,0.7626,4738.6,4738.3,0.346]
[1756034121118,0.7626,4738.4,4738.1,0.221]
[1756034121413,19.459,4738.5,4738.1,0.221]
[1756034121414,0.7626,4738.2,4738.1,0.2226]
[1756034121611,0.7626,4738.2,4738.1,0.1525]
[1756034121612,0.3015,4738.2,4738.1,0.1525]
[1756034121814,0.3015,4738.2,4738.1,0.3751]
[1756034122011,0.3015,4738.2,4738.1,1.3315]
[1756034122219,19.7605,4738.2,4738.1,1.3315]
[1756034122417,0.3015,4738.2,4738.1,1.3315]
[1756034122910,0.5245,4738.7,4738.6,1.3315]
[1756034123110,0.5245,4739.1,4739.0,0.7645]
[1756034123310,0.3015,4739.1,4739.0,1.3315]
[1756034123515,0.3015,4739.1,4739.0,1.0929]
[1756034123717,0.7626,4739.1,4739.0,0.5961]
[1756034124021,0.7626,4739.1,4739.0,0.3751]
[1756034124519,19.9815,4739.1,4739.0,1.3315]
[1756034124721,19.7585,4739.1,4739.0,1.3315]
[1756034124915,0.1511,4739.1,4739.0,1.3315]
[1756034125122,19.457,4739.4,4739.3,1.3315]
[1756034125421,19.9815,4739.4,4739.3,1.3315]
[1756034125616,20.2196,4739.4,4739.3,0.7469]
[1756034126017,20.2196,4739.4,4739.3,1.0929]
[1756034126213,20.2196,4739.4,4739.3,1.3315]
[1756034126718,0.7626,4739.4,4739.3,1.3315]
[1756034127615,0.2381,4739.8,4739.3,1.3315]
[1756034127817,0.3015,4739.7,4739.6,0.5259]
[1756034128023,0.5245,4739.7,4739.6,1.3315]
[1756034131419,0.3015,4739.7,4739.6,1.3315]
[1756034131618,0.2381,4740.9,4740.4,0.8056]
[1756034131825,0.021,4742.0,4740.3,0.3751]
[1756034131826,0.7636,4741.2,4741.1,1.3315]
[1756034132124,0.7653,4741.2,4741.1,1.3315]
[1756034132325,0.7653,4741.2,4741.1,1.0929]
[1756034132526,0.7653,4741.2,4741.1,1.3315]
[1756034133133,0.5255,4741.2,4741.1,1.3315]
[1756034133624,0.5272,4741.2,4741.1,1.3315]
[1756034133830,0.7653,4741.2,4741.1,1.3315]
[1756034134734,0.7653,4741.2,4740.7,0.346]
[1756034134920,0.3032,4740.7,4740.3,0.8056]
[1756034135120,0.7653,4740.5,4740.4,1.64295024]
[1756034136928,0.7653,4740.5,4740.4,0.7469]
[1756034137126,20.2183,4740.5,4740.4,0.7469]
[1756034137326,20.2183,4740.5,4740.4,1.41093581]
[1756034137522,20.2173,4740.5,4740.4,1.0989]
[1756034137727,20.2173,4740.5,4740.4,0.31203575]
[1756034137921,0.3036,4739.9,4739.8,2.03764625]
[1756034138127,0.5245,4739.9,4739.8,2.58878244]
[1756034138429,0.7477,4739.9,4739.8,2.19608244]
[1756034138629,0.3042,4739.9,4739.4,0.352]
[1756034138934,0.7477,4739.6,4739.5,0.31214074]
[1756034139129,20.1997,4739.6,4739.5,0.31214074]
[1756034139336,24.1997,4739.6,4738.8,0.242]
[1756034139526,0.3042,4739.0,4738.9,0.31227602]
[1756034139728,0.7477,4739.0,4738.9,0.31227602]
[1756034140034,45.1042,4739.0,4738.1,0.594]
[1756034140227,0.3042,4738.3,4738.2,0.31229338]
[1756034140424,0.7477,4738.3,4738.2,0.54739338]
[1756034141532,0.2226,4738.9,4738.2,1.09859338]
[1756034141733,19.451,4738.8,4738.7,1.3803]
[1756034142034,19.7536,4738.8,4738.7,1.3803]
[1756034142236,19.9771,4738.8,4738.7,1.3803]
[1756034142439,20.1987,4738.8,4738.7,1.3803]
[1756034142740,0.3042,4738.8,4738.3,0.2391]
[1756034142939,0.3042,4738.5,4738.4,1.29555227]
[1756034143239,0.7477,4738.5,4738.4,1.29555227]
[1756034143835,0.7477,4738.5,4738.4,1.44915227]
[1756034144132,0.7477,4738.5,4738.4,1.68818265]
[1756034144434,0.7477,4738.5,4738.4,1.44908265]
[1756034145430,0.7477,4738.5,4738.4,0.30788265]
[1756034146641,0.7477,4738.5,4738.4,1.68818265]
[1756034147736,19.6036,4738.5,4738.4,1.68818265]
[1756034148237,0.5235,4738.9,4738.8,1.3803]
[1756034148440,19.9765,4738.9,4738.8,1.3803]
[1756034149134,0.5235,4738.9,4738.8,1.3803]
[1756034149337,19.9765,4738.9,4738.8,1.3803]
[1756034150241,20.2007,4738.9,4738.8,0.242]
[1756034150431,0.3042,4738.6,4738.5,0.352]
[1756034150636,0.7477,4738.6,4738.5,0.89478792]
[1756034150837,0.7477,4738.6,4738.5,1.68798792]
[1756034151031,0.5261,4738.6,4738.5,1.68798792]
[1756034151438,0.5245,4738.6,4738.5,1.68798792]
[1756034151841,19.453,4738.7,4738.5,1.68798792]
[1756034152143,19.453,4738.9,4738.6,0.85488792]
[1756034152436,0.1506,4738.8,4738.7,1.68798792]
[1756034152641,19.453,4739.1,4738.7,1.68798792]
[1756034152834,19.453,4739.1,4738.7,0.5472]
[1756034153036,19.9765,4739.1,4739.0,1.3803]
[1756034153543,0.5235,4739.1,4739.0,1.3803]
[1756034154245,19.9765,4739.1,4739.0,1.3803]
[1756034154742,19.7556,4739.1,4739.0,1.3803]
[1756034155144,0.3026,4739.1,4739.0,1.3803]
[1756034155444,19.7566,4739.1,4739.0,1.3803]
[1756034155644,19.9775,4739.1,4739.0,1.3803]
[1756034156046,0.5235,4739.1,4739.0,1.3803]
[1756034156442,0.7477,4739.1,4739.0,1.3803]
[1756034156745,0.7477,4739.1,4739.0,1.1412]
[1756034156937,20.2007,4739.1,4739.0,1.1412]
[1756034157137,0.7477,4739.1,4739.0,1.1412]
[1756034157343,20.2007,4739.1,4739.0,1.1412]
[1756034160239,0.3042,4738.7,4738.6,0.5871]
[1756034160540,0.7477,4738.7,4738.6,0.30067811]
[1756034160744,0.7477,4738.7,4737.8,0.2391]
[1756034160745,0.3042,4738.7,4737.9,0.242]
[1756034160938,0.7477,4738.1,4738.0,1.68095903]
[1756034161738,0.5235,4738.1,4738.0,1.68095903]
[1756034161946,0.1506,4738.1,4738.0,1.68095903]
[1756034162642,0.001,4739.0,4738.2,0.0211]
[1756034162840,0.3026,4739.0,4738.9,1.3803]
[1756034163148,0.5235,4739.3,4739.2,1.3803]
[1756034163448,0.5235,4739.3,4739.2,1.68117502]
[1756034163953,19.452,4739.6,4739.2,1.68117502]
[1756034164148,0.3026,4739.3,4739.2,0.5472]
[1756034164450,0.001,4739.5,4739.2,0.84809978]
[1756034164645,0.1506,4739.3,4739.2,1.3803]
[1756034164844,0.1506,4739.3,4739.2,1.68133226]
[1756034165239,0.2209,4739.6,4739.2,0.84823226]
[1756034165444,0.1506,4739.7,4739.6,0.3121]
[1756034165648,0.1506,4739.7,4739.6,0.5472]
[1756034165844,0.1506,4739.7,4739.6,0.84840803]
[1756034166045,0.1506,4739.7,4739.6,1.44240803]
[1756034166351,0.1506,4739.7,4739.6,1.68150436]
[1756034166649,19.452,4739.9,4739.7,0.8087]
[1756034166951,19.997,4739.9,4739.8,1.65790436]
[1756034167449,19.9981,4739.9,4739.8,1.65790436]
[1756034168045,0.5461,4739.9,4739.8,1.65790436]
[1756034168344,50.0909,4740.5,4740.4,1.3567]
[1756034168543,50.334,4740.5,4740.4,1.27060436]
[1756034168746,50.334,4740.5,4740.4,0.30120436]
[1756034169048,50.76209182,4740.5,4740.4,0.30120436]
[1756034169249,50.762001,4740.5,4740.4,0.30120436]
[1756034169749,54.762001,4740.5,4740.4,0.30120436]
[1756034169954,54.762001,4740.5,4740.4,0.30010436]
[1756034170253,0.3061,4739.6,4739.5,0.1496]
[1756034170450,19.995,4739.6,4739.5,0.3681]
[1756034170949,19.995,4739.6,4739.5,0.6062]
[1756034172652,19.995,4739.6,4739.5,1.3567]
[1756034175349,19.995,4739.6,4739.2,1.13844625]
[1756034175546,0.3061,4738.9,4738.6,1.13844625]
[1756034175751,0.3061,4738.6,4738.5,0.2185]
[1756034175953,0.6603,4738.6,4738.5,0.2185]
[1756034176149,0.6603,4738.6,4738.2,1.13844625]
[1756034176150,0.3061,4738.3,4738.2,1.35694625]
[1756034176453,0.545,4738.0,4737.9,0.2185]
[1756034177848,0.4214,4737.8,4737.7,1.35694625]
[1756034178048,0.4214,4737.8,4737.7,0.2185]
[1756034178049,0.6603,4737.8,4737.7,0.2185]
[1756034180256,0.6603,4737.8,4737.4,0.2185]
[1756034180454,0.3061,4737.5,4737.4,0.6062]
[1756034180760,0.545,4737.5,4737.4,1.3567]
[1756034185058,0.1153,4738.3,4737.4,0.548]
[1756034185257,20.1083,4738.2,4738.1,0.2185]
[1756034186764,0.6603,4738.2,4738.1,0.2185]
[1756034186965,20.1093,4738.2,4738.1,0.2185]
[1756034187360,20.1093,4738.2,4737.0,1.13844625]
[1756034187561,0.545,4737.2,4737.1,1.3567]
[1756034188066,0.545,4737.2,4737.1,1.1297]
[1756034188455,0.545,4737.2,4737.1,0.6062]
[1756034188660,0.6603,4737.2,4737.1,0.3681]
[1756034189058,0.6603,4737.2,4736.4,0.227]
[1756034189360,0.545,4736.8,4736.7,0.2185]
[1756034189860,0.545,4736.8,4736.7,0.4566]
[1756034191267,0.545,4736.8,4736.7,0.6062]
[1756034192060,0.6604,4736.8,4736.7,0.2185]
[1756034192764,0.3911,4736.8,4736.4,0.2185]
[1756034192967,0.6604,4736.5,4736.4,0.2185]
[1756034193871,0.545,4736.5,4736.4,0.6062]
[1756034194063,0.545,4736.5,4736.4,1.3567]
[1756034194969,0.545,4736.5,4736.4,0.6062]
[1756034195373,0.545,4736.5,4736.4,0.9694]
[1756034195871,0.545,4736.5,4736.4,1.3567]
[1756034196272,0.545,4736.5,4736.4,1.1297]
[1756034197775,0.545,4736.5,4736.4,1.3482]
[1756034198169,0.545,4736.5,4736.4,0.2185]
[1756034198368,0.6606,4736.5,4736.4,0.2185]
[1756034200076,0.5397,4735.4,4735.3,0.3835]
[1756034200372,19.9917,4735.4,4735.3,0.3835]
[1756034200572,19.9917,4735.4,4735.3,0.6107]
[1756034200773,19.9917,4735.4,4735.3,1.3207]
[1756034201269,0.5397,4735.0,4734.9,0.9405]
[1756034201675,0.5397,4735.0,4734.9,1.0935]
[1756034201872,41.3397,4735.0,4734.9,1.3207]
[1756034203077,41.3397,4735.0,4734.9,1.1022]
[1756034204079,41.4553,4735.0,4734.9,0.6107]
[1756034204472,41.3397,4735.0,4734.9,1.3207]
[1756034205369,41.3397,4735.0,4734.9,0.6107]
[1756034205974,41.3397,4735.0,4734.9,1.1022]
[1756034206181,19.453,4735.0,4734.9,1.3207]
[1756034206877,19.6032,4735.0,4734.9,1.3207]
[1756034207072,0.2372,4735.4,4734.9,1.3207]
[1756034207381,19.9937,4735.2,4735.1,1.3207]
[1756034208375,19.9937,4735.2,4735.1,0.9492]
[1756034208685,20.1093,4735.2,4735.1,0.6107]
[1756034208978,20.1093,4735.2,4734.8,0.3385]
[1756034209182,0.3025,4735.0,4734.9,0.3835]
[1756034209380,0.5397,4735.0,4734.9,0.6107]
[1756034209568,0.5397,4735.0,4734.9,0.9492]
[1756034210081,0.5397,4735.0,4734.9,0.7637]
[1756034210379,0.6553,4735.0,4734.9,0.2272]
[1756034210774,0.6553,4735.0,4734.9,0.3861]
[1756034210972,0.3528,4734.9,4734.3,0.2272]
[1756034211171,0.5397,4734.4,4734.3,0.2272]
[1756034211483,19.9937,4734.4,4734.3,0.9492]
[1756034211679,19.9937,4734.4,4734.3,1.3207]
[1756034212580,0.6553,4734.2,4734.1,0.32436633]
[1756034212969,41.4553,4734.2,4734.1,0.32436633]
[1756034213376,60.9103,4734.2,4734.1,0.09716633]
[1756034213577,60.9103,4734.2,4734.1,0.32436633]
[1756034215887,60.9103,4734.2,4734.1,0.48326633]
[1756034216083,60.9103,4734.2,4734.1,0.70786633]
[1756034216481,41.4553,4734.2,4734.1,0.32436633]
[1756034216684,60.9103,4734.2,4734.1,0.32436633]
[1756034216984,60.9103,4734.2,4734.1,0.48326633]
[1756034217186,60.7947,4734.2,4734.1,1.41786633]
[1756034217585,19.9947,4734.2,4734.1,1.41786633]
[1756034217781,0.5397,4734.2,4734.1,1.41786633]
[1756034217981,0.5397,4734.2,4734.1,1.19936633]
[1756034218182,19.9957,4734.2,4734.1,1.19936633]
[1756034218481,19.9957,4734.2,4734.1,1.41786633]
[1756034218687,0.3874,4734.2,4734.1,1.41786633]
[1756034218885,19.8434,4734.2,4734.1,1.41786633]
[1756034219484,0.3874,4734.2,4734.1,1.41786633]
[1756034219685,0.5397,4734.2,4734.1,1.41786633]
[1756034220486,0.5397,4734.8,4734.7,1.3207]
[1756034220688,19.9957,4734.8,4734.7,1.3207]
[1756034221593,0.5397,4734.8,4734.7,1.3207]
[1756034221786,19.9957,4734.8,4734.7,1.3207]
[1756034222392,19.9957,4734.8,4734.7,1.1022]
[1756034222592,20.1113,4734.8,4734.7,0.2272]
[1756034222987,0.2372,4734.7,4734.4,0.2272]
[1756034223194,0.6553,4734.5,4734.4,0.2272]
[1756034223489,0.6553,4734.2,4734.1,0.09716633]
[1756034223793,20.1113,4734.2,4734.1,0.09716633]
[1756034225297,0.5397,4734.2,4734.1,0.70786633]
[1756034225500,60.7947,4734.2,4734.1,1.04636633]
[1756034225797,60.7947,4734.2,4734.1,1.19936633]
[1756034225995,41.3397,4734.2,4734.1,1.41786633]
[1756034226191,0.5397,4734.2,4734.1,1.41786633]
[1756034226500,19.9947,4734.2,4734.1,1.41786633]
[1756034226699,0.5397,4734.2,4734.1,1.41786633]
[1756034226896,19.9947,4734.2,4734.1,1.41786633]
[1756034227093,19.455,4734.3,4734.2,0.5757]
[1756034227300,19.6023,4734.3,4734.2,1.3643]
[1756034227895,19.455,4734.3,4734.2,5.3643]
[1756034228298,19.9838,4734.3,4734.2,0.7886]
[1756034228495,0.6445,4734.2,4734.1,0.09716633]
[1756034228797,41.4445,4734.2,4734.1,0.09716633]
[1756034229500,0.6445,4734.2,4734.1,0.09716633]
[1756034229798,0.6445,4734.2,4734.1,0.33416633]
[1756034230004,41.4445,4734.2,4734.1,0.33416633]
[1756034231004,41.4445,4734.2,4734.1,0.09716633]
[1756034231403,41.4445,4734.2,4734.1,0.33416633]
[1756034231601,0.2323,4735.0,4734.1,4.66986633]
[1756034231906,19.9838,4734.9,4734.8,1.3643]
[1756034233298,19.455,4734.9,4734.8,0.7886]
[1756034233500,19.6023,4734.9,4734.8,0.7886]
[1756034233699,19.9828,4734.9,4734.8,0.7886]
[1756034233898,19.9838,4734.9,4734.8,1.3643]
[1756034234599,19.9838,4734.9,4734.6,1.13844625]
[1756034234600,0.6445,4734.8,4734.6,1.13844625]
[1756034234796,0.6445,4734.7,4734.6,1.13844625]
[1756034235299,0.6445,4734.7,4734.6,0.237]
[1756034236004,0.5288,4734.7,4734.6,1.3643]
[1756034236204,19.455,4734.7,4734.6,2.50274625]
[1756034236797,20.1206,4734.7,4734.6,1.13844625]
[1756034236997,0.4963,4734.2,4734.1,0.09716633]
[1756034237197,20.0985,4734.2,4734.1,0.09716633]
[1756034237402,60.8985,4734.2,4734.1,0.09716633]
[1756034237800,20.0985,4734.2,4734.1,0.09716633]
[1756034238299,60.8985,4734.2,4734.1,0.09716633]
[1756034238507,60.7828,4734.2,4734.1,1.24036633]
[1756034239101,19.9828,4734.2,4734.1,1.24036633]
[1756034240200,20.0984,4734.2,4734.1,0.33416633]
[1756034240398,20.0984,4734.2,4734.1,0.09716633]
[1756034241401,0.6444,4734.2,4734.1,0.09716633]
[1756034241702,20.1185,4734.2,4734.1,0.09716633]
[1756034241909,20.0974,4734.2,4733.8,1.13844625]
[1756034242100,0.0211,4734.5,4733.8,1.13844625]
[1756034242101,0.2955,4733.9,4733.8,1.13844625]
[1756034242309,19.9818,4733.9,4733.8,1.76614625]
[1756034242805,19.9818,4733.9,4733.8,2.50274625]
[1756034243003,19.7495,4733.9,4733.8,2.50274625]
[1756034243308,0.6434,4733.8,4733.7,1.13844625]
[1756034243504,0.6434,4733.7,4733.6,1.13844625]
[1756034243708,0.6434,4733.7,4733.2,1.13844625]
[1756034243709,0.2955,4733.3,4733.2,1.13844625]
[1756034243911,0.2955,4733.1,4733.0,1.37544625]
[1756034244111,0.5278,4733.1,4733.0,1.37544625]
[1756034244408,0.5278,4733.1,4733.0,1.13844625]
[1756034244409,0.6434,4733.1,4733.0,1.13844625]
[1756034244710,20.0974,4733.1,4733.0,1.13844625]
[1756034245406,1.86335646,4735.9,4732.9,2.26574625]
[1756034245407,0.5278,4733.0,4732.9,2.26574625]
[1756034245705,19.9818,4733.0,4732.9,2.26574625]
[1756034246006,19.9818,4733.0,4732.9,2.50274625]
[1756034246210,19.9818,4733.0,4732.9,2.28164625]
[1756034246405,19.9818,4733.0,4732.9,1.1432]
[1756034246602,19.9818,4733.0,4732.9,0.6277]